[Event "1st Semana Santa Torrevieja 2022"]
[Site "Torrevieja Alicante"]
[Date "2022.04.15"]
[Round "4.9"]
[White "Efimovich, Sergey"]
[Black "Cabrera, Alexis"]
[Result "1/2-1/2"]
[ECO "E61"]
[WhiteElo "2318"]
[BlackElo "2482"]
[Annotator "TA"]
[PlyCount "166"]
[EventDate "2022.04.12"]
[EventType "swiss"]
[EventCountry "ESP"]
[SourceTitle "playchess.com"]
[Source "ChessBase"]
[SourceQuality "1"]
[TimeControl "5400+30"]

{[%evp 16,166,15,8,12,8,17,4,18,0,11,2,41,22,41,31,40,36,20,20,36,28,43,43,35,35,45,-87,8,-48,-42,-57,-57,-64,-52,-45,-40,-72,-65,-81,-72,-72,-72,-80,-72,-73,-51,-81,-54,-98,-95,-89,-88,-70,-56,-54,-15,-20,0,-41,-27,-23,-20,-28,-19,-15,-15,-14,-16,-8,-20,-18,-31,-28,-18,-30,0,0,0,-46,-32,-42,-37,-42,-20,-33,0,0,0,0,0,0,52,0,27,27,26,20,20,20,20,31,23,23,64,23,29,23,25,0,39,36,50,46,59,8,8,8,8,8,8,8,8,8,8,8,8,8,8,8,8,8,12,12,59,12,20,28,63,8,8,8,8,8,16,8,8,8,8,8,8,8,8]} 1. d4 {[%emt 0:00:30]} Nf6 {[%emt 0:05:25]} 2. Nf3 {[%emt 0:00:08]} g6 {[%emt 0:00:07]} 3. e3 {[%emt 0:00:42]} Bg7 {[%emt 0:00:24]} 4. Be2 {[%emt 0:00:04]} O-O {[%emt 0:00:18]} 5. O-O {[%emt 0:00:04]} d6 {[%emt 0:00:10]} 6. c4 {[%emt 0:00:06]} Nbd7 {[%emt 0:00:14]} 7. Nc3 {[%emt 0:00:07]} e5 {[%emt 0:00:05]} 8. Qc2 {[%emt 0:00:51]} Re8 {[%emt 0:01:53]} 9. Rd1 {[%emt 0:02:03]} exd4 {[%emt 0:03:05] E61: King's Indian: Early deviations for White, including Smyslov System.} 10. exd4 {[%emt 0:01:33]} Nb6 {[%emt 0:03:10]} 11. h3 {[%emt 0:04:39]} Bf5 {[%emt 0:12:21]} 12. Bd3 {[%emt 0:01:06]} Bxd3 {[%emt 0:01:19]} 13. Qxd3 {[%emt 0:00:02] [#]} Qd7 $146 {[%emt 0:01:30]} ({Predecessor:} 13... d5 14. c5 Nbd7 15. Bf4 c6 16. Re1 Nf8 17. b4 a6 18. Rxe8 Nxe8 19. Re1 Ne6 20. Bg3 Qf6 21. Ne2 Ng5 22. Nd2 {½-½ (22) Jeute,V (2214)-Mileto,G (2219) ICCF email 2018}) 14. b3 {[%emt 0:01:46]} Re7 {[%emt 0:07:47]} 15. Be3 {[%emt 0:01:49]} Rae8 {[%emt 0:01:03]} 16. Rac1 {[%emt 0:00:22]} c6 {[%emt 0:14:55]} 17. d5 {[%emt 0:03:26]} c5 {[%emt 0:04:56]} 18. a3 {[%emt 0:00:21]} Ne4 {[%emt 0:01:02]} 19. Nxe4 {[%emt 0:07:02]} Rxe4 {[%emt 0:00:50]} 20. Rc2 {[%emt 0:00:12]} Qf5 {[%emt 0:15:04]} 21. b4 {[%emt 0:00:43] [#]} (21. Kf1 $14) 21... Nd7 {[%emt 0:00:03]} (21... Rxc4 $1 $17 22. Qxf5 gxf5 23. Rxc4 Nxc4 24. bxc5 Nxe3 25. fxe3 dxc5) 22. Nh2 {[%emt 0:23:58]} ({White should try} 22. Rcc1 $11) 22... Bd4 $15 {[%emt 0:10:52][%cal Re4e3]} 23. Nf1 {[%emt 0:00:07] And now Ng3 would win.} Bxe3 {[%emt 0:06:32]} 24. Nxe3 {[%emt 0:00:24]} Qf4 {[%emt 0:00:08]} 25. Qb3 {[%emt 0:03:03]} a6 {[%emt 0:00:11]} 26. bxc5 {[%emt 0:01:03]} Nxc5 {[%emt 0:00:10]} 27. Qc3 {[%emt 0:00:35]} h5 {[%emt 0:00:16] Against Ng4} 28. Rb1 {[%emt 0:01:06]} R8e7 {[%emt 0:00:42]} 29. Re2 {[%emt 0:02:41]} R4e5 {[%emt 0:00:47]} 30. Rf1 {[%emt 0:03:17]} g5 {[%emt 0:00:57]} 31. Qa5 {[%emt 0:09:28]} Re8 {[%emt 0:02:15] Against Qd8} 32. Qc7 {[%emt 0:00:58]} Qf6 {[%emt 0:01:49]} 33. Qb6 {[%emt 0:06:00]} Qg6 {[%emt 0:00:29]} 34. Qb1 {[%emt 0:00:22]} Re4 {[%emt 0:00:55]} 35. Ree1 {[%emt 0:04:55]} Qf6 {[%emt 0:01:15]} 36. Qd1 {[%emt 0:00:36]} Qg6 {[%emt 0:00:54]} 37. Nc2 {[%emt 0:04:46][%cal Be3c2,Bc2e1,Be1f3][%mdl 32]} R8e5 {[%emt 0:03:17]} 38. Rxe4 {[%emt 0:05:00]} Rxe4 {[%emt 0:00:13]} 39. Re1 {[%emt 0:03:06]} Rxe1+ {[%emt 0:00:43]} 40. Nxe1 {[%emt 0:00:03]} Qe4 {[%emt 0:01:09]} 41. Nf3 {[%emt 0:00:37]} g4 {[%emt 0:00:18]} 42. hxg4 {[%emt 0:00:13]} hxg4 {[%emt 0:00:04]} 43. Nd2 {[%emt 0:00:05]} Qd4 {[%emt 0:01:03]} 44. Qe2 $1 {[%emt 0:00:11]} g3 {[%emt 0:00:30] Threatens to win with ...Nd3.} 45. Qe3 {[%emt 0:06:26]} gxf2+ {[%emt 0:01:03]} 46. Kxf2 {[%emt 0:01:08]} Nd3+ {[%emt 0:00:30]} 47. Kf3 {[%emt 0:00:17]} (47. Ke2 $11 {is more appropriate.} Nf4+ 48. Kf3 Qxe3+ 49. Kxe3 Nxg2+ 50. Kf2) 47... Ne5+ {[%emt 0:00:12]} 48. Ke2 {[%emt 0:00:43]} Qg4+ {[%emt 0:00:03]} 49. Kf2 {[%emt 0:00:26]} Kf8 {[%emt 0:01:09]} 50. c5 {[%emt 0:01:53]} Qh4+ {[%emt 0:00:20]} 51. Kg1 $1 {[%emt 0:00:15]} Ng4 {[%emt 0:00:50]} 52. Qf4 {[%emt 0:01:01]} dxc5 {[%emt 0:00:13]} 53. Nf1 {[%emt 0:00:49]} Ke7 {[%emt 0:00:54]} (53... c4 $11) 54. Qc7+ {[%emt 0:00:31]} (54. Ng3 $1 $14 Ke8 55. Qb8+ Qd8 56. Qxb7) 54... Ke8 {[%emt 0:00:25]} (54... Kf8 $5 {[%cal Rh4f2]} 55. Qb8+ (55. Qxc5+ Kg8 $11) 55... Kg7 $11) 55. Qc8+ {[%emt 0:00:30]} Ke7 {[%emt 0:00:05]} 56. Qxb7+ {[%emt 0:00:27]} Kd6 {[%emt 0:00:49]} 57. Qc6+ {[%emt 0:00:07]} Ke5 $1 {[%emt 0:00:12] [#] ( -> ...Qf2+)} 58. Qxc5 {[%emt 0:00:04] aiming for g3.} Nf6 {[%emt 0:00:49]} 59. Qc7+ {[%emt 0:03:55]} Kxd5 {[%emt 0:00:44]} 60. Ne3+ {[%emt 0:00:06]} Ke6 {[%emt 0:00:12]} 61. Qc6+ {[%emt 0:01:01]} Ke5 {[%emt 0:00:04]} 62. Qc7+ {[%emt 0:00:49]} Ke6 {[%emt 0:00:04]} 63. Qb6+ {[%emt 0:00:03]} Kd7 {[%emt 0:00:44]} 64. Qb7+ {[%emt 0:00:25]} Kd8 {[%emt 0:00:30]} 65. Qxa6 {[%emt 0:00:55]} (65. Qxf7 $14 Qe1+ 66. Nf1) 65... Qd4 $11 {[%emt 0:00:23]} (65... Qe1+ 66. Nf1 Qe5 67. Qa8+ Ke7 68. Qa7+ Kd8 69. Qb6+ (69. Qxf7 Qd4+ 70. Kh2 Qh4+ 71. Kg1 Qd4+ 72. Kh2 Qh4+ 73. Kg1 Qd4+ $11) 69... Kd7 70. Ne3 $14) 66. Qa5+ {[%emt 0:00:30]} Kd7 {[%emt 0:00:34]} 67. Qb5+ {[%emt 0:00:19]} Kd8 {[%emt 0:00:20]} 68. Qb8+ {[%emt 0:00:29]} Kd7 {[%emt 0:00:08]} 69. Qb3 {[%emt 0:00:11]} ({Don't take} 69. Qb7+ Kd6 70. Qb8+ Kd7 $14) 69... Ke8 {[%emt 0:01:03]} 70. Kf1 {[%emt 0:00:15]} Ne4 $1 {[%emt 0:00:41] White must now prevent ...Nd2+.} 71. Qb5+ {[%emt 0:00:30]} Kd8 {[%emt 0:00:59] Strongly threatening ...Qa1+.} 72. Qd5+ {[%emt 0:00:15]} (72. Qb8+ {keeps more tension.} Kd7 73. Qb7+ Kd8 74. Qe7+) 72... Qxd5 {[%emt 0:00:04]} 73. Nxd5 {[%emt 0:00:03][%mdl 4096] Endgame KN-KN} Kd7 {[%emt 0:00:10]} 74. Ke2 {[%emt 0:00:18]} Kd6 {[%emt 0:00:25]} (74... Kc6 $11 {deserves consideration.}) 75. Nb4 {[%emt 0:00:09]} (75. Ne3 $14) 75... Kc5 {[%emt 0:00:47]} 76. Ke3 {[%emt 0:00:08]} Nd6 {[%emt 0:00:59]} 77. Kf4 {[%emt 0:00:08]} ({White should play} 77. Nd3+ $14 Kd5 78. Nb2) 77... Kc4 {[%emt 0:00:51] The position is equal.} 78. Nc6 {[%emt 0:00:24]} Kb3 {[%emt 0:00:23]} 79. Ke5 {[%emt 0:00:28]} Nc4+ $1 {[%emt 0:00:14]} 80. Kf6 {[%emt 0:00:10]} Ne3 {[%emt 0:00:11]} 81. g3 {[%emt 0:00:13]} Nf1 {[%emt 0:00:32]} 82. Nd4+ {[%emt 0:00:42]} Kc4 {[%emt 0:00:07]} 83. Nf5 {[%emt 0:00:08]} Nxg3 {[%emt 0:00:08] Weighted Error Value: White=0.15 (very precise) /Black=0.13 (very precise)} 1/2-1/2

[Event "1st Semana Santa Torrevieja 2022"]
[Site "Torrevieja Alicante"]
[Date "2022.04.15"]
[Round "4.10"]
[White "Rakotomaharo, Fy Antenaina"]
[Black "Vereggen, Lars"]
[Result "1-0"]
[ECO "B12"]
[WhiteElo "2474"]
[BlackElo "2326"]
[Annotator "TA"]
[PlyCount "123"]
[EventDate "2022.04.12"]
[EventType "swiss"]
[EventCountry "ESP"]
[SourceTitle "playchess.com"]
[Source "ChessBase"]
[SourceQuality "1"]
[TimeControl "5400+30"]

{[%evp 11,123,11,2,0,0,-8,6,19,53,45,54,51,54,27,35,21,96,104,116,112,145,74,81,83,72,75,84,93,118,110,109,111,111,112,134,41,40,-13,40,36,46,45,37,47,56,45,53,45,70,68,70,68,70,70,79,77,77,58,70,0,86,0,93,59,976,948,1010,85,888,60,70,64,54,29,31,0,15,14,27,23,17,0,0,0,0,0,0,-8,44,20,21,0,0,7,14,15,216,172,173,171,848,886,1990,1981,1743,811,1743,1658,1456,1382,1921,1751,29984,29985]} 1. e4 {[%emt 1:31:00]} c6 {[%emt 0:03:50]} 2. d4 {[%emt 0:00:00]} d5 {[%emt 0:00:03]} 3. e5 {[%emt 0:00:00]} Bf5 {[%emt 0:00:09]} 4. h4 {[%emt 0:00:00]} h5 {[%emt 0:00:17]} 5. Bd3 {[%emt 0:00:00]} Bxd3 {[%emt 0:00:20]} 6. Qxd3 {[%emt 0:00:00]} e6 {[%emt 0:00:07]} 7. Bg5 {[%emt 0:00:00] B12: Caro-Kann: Advance Variation.} Qb6 {[%emt 0:00:18]} 8. Nd2 {[%emt 0:00:00] Active counter play!} Qa6 {[%emt 0:00:47]} 9. c4 {[%emt 0:00:00] The position is equal.} Ne7 {[%emt 0:00:43]} 10. Ngf3 {[%emt 0:00:00]} Nd7 {[%emt 0:04:13]} 11. O-O {[%emt 0:00:00]} Nf5 {[%emt 0:09:59]} 12. b3 {[%emt 0:00:00][%cal Bb2b3,Bb3b4,Bb4b5][%mdl 32]} Ba3 {[%emt 0:06:28]} 13. Rfb1 {[%emt 0:00:00] [#]} c5 $146 {[%emt 0:07:53]} (13... O-O $1 $11 {remains equal.}) ({Predecessor:} 13... Be7 14. Bxe7 Nxe7 15. a4 Nf5 16. b4 dxc4 17. Nxc4 b5 18. Nd6+ Nxd6 19. exd6 O-O {1-0 (33) Taichman,O (2293)-Bendayan Claros,A (2188) Chess.com INT 2021}) 14. dxc5 $1 $16 {[%emt 0:00:00]} Bb4 {[%emt 0:10:35]} 15. Qc2 $36 {[%emt 0:00:00][%mdl 2048] White is really pushing.} Bxd2 {[%emt 0:02:34]} 16. Bxd2 {[%emt 0:00:00]} (16. Qxd2 $142 dxc4 17. Rd1) 16... dxc4 {[%emt 0:02:13]} 17. b4 $1 {[%emt 0:00:00]} (17. Qxc4 Qxc4 18. bxc4 Nxc5 $11) (17. bxc4 Nxc5 18. Rb5 Qc6 $14) 17... Qc6 {[%emt 0:01:22]} 18. Qxc4 {[%emt 0:00:00]} b6 {[%emt 0:01:57]} 19. Qa6 {[%emt 0:00:00]} Nb8 {[%emt 0:05:57]} 20. Qa3 {[%emt 0:00:00]} bxc5 {[%emt 0:00:32]} 21. b5 {[%emt 0:00:00]} Qd5 {[%emt 0:00:20]} 22. Rd1 {[%emt 0:00:00] Bg5 is the strong threat.} Nd7 {[%emt 0:00:35]} 23. Bg5 {[%emt 0:00:00]} (23. Be3 $16 Qb7 24. Bxc5) 23... Qb7 $14 {[%emt 0:00:23]} 24. Rd3 {[%emt 0:00:00]} (24. Qd3 $14) 24... O-O {[%emt 0:01:00]} (24... Rc8 $11) 25. Rad1 {[%emt 0:00:00]} Nb6 {[%emt 0:00:11]} 26. Qxc5 {[%emt 0:00:00]} Nd5 {[%emt 0:03:48]} 27. Qc4 {[%emt 0:00:00]} Rac8 {[%emt 0:01:01]} 28. Qe4 {[%emt 0:01:47][%cal Rd3d5]} Rc5 {[%emt 0:00:05]} 29. a4 {[%emt 0:00:27]} Rfc8 {[%emt 0:00:06]} 30. Nd4 {[%emt 0:01:58]} Nxd4 {[%emt 0:04:19]} 31. Rxd4 {[%emt 0:00:19]} (31. Qxd4 Rc4 32. Qa1 Re4 $11) 31... Qb8 {[%emt 0:00:45]} 32. R1d3 {[%emt 0:01:35]} Nc3 {[%emt 0:06:12]} 33. Qf3 {[%emt 0:00:33]} Nd5 {[%emt 0:02:27]} 34. Qg3 {[%emt 0:00:35]} Nc3 {[%emt 0:12:31] Strongly threatening ...Ne2+.} 35. Qf3 {[%emt 0:00:09] Inhibits Ne2+.} (35. Rd8+ Rxd8 36. Rxc3 (36. Rxd8+ $2 Qxd8 37. Bxd8 Ne2+ 38. Kh2 Nxg3 $19) 36... Rd1+ 37. Kh2 Qxe5 38. Qxe5 Rxe5 $17) (35. Rd2 {seems wilder.} Nd5 36. Bh6 g6 37. R2d3) 35... Nd5 {[%emt 0:00:04]} 36. Qg3 {[%emt 0:00:04]} Nc3 $1 {[%emt 0:00:06] Hoping for ...Ne2+.} 37. Kf1 {[%emt 0:00:03] Against Ne2} ({Weaker is} 37. Rd8+ Rxd8 38. Rxc3 (38. Rxd8+ $2 {loses.} Qxd8 39. Bxd8 Ne2+ 40. Kh2 Nxg3 $19) 38... Rd1+ 39. Kh2 Qxe5 40. Qxe5 Rxe5 $17) 37... Qxe5 $4 {[%emt 0:01:29][%mdl 8192] [#]} (37... Nd5 $14) 38. Rd8+ $1 $18 {[%emt 0:04:21]} Rxd8 {[%emt 0:00:22]} 39. Rxd8+ {[%emt 0:00:05]} Kh7 {[%emt 0:00:12]} 40. Qxe5 {[%emt 0:00:02]} (40. Qf3 $18 {[%cal Rf3h5]} Kg6 41. Rh8 Qe2+ 42. Qxe2 Nxe2 43. Kxe2) 40... Rxe5 {[%emt 0:00:25][%mdl 4096] Endgame KRB-KRN} 41. Rd4 $1 {[%emt 0:01:13] And now Bf4 would win.} Rc5 $1 {[%emt 0:02:44]} 42. Be7 {[%emt 0:01:29]} Rc8 {[%emt 0:00:41]} (42... Rd5 $2 43. Rxd5 Nxd5 44. Bc5 $18) 43. Ba3 {[%emt 0:03:33]} Nd5 {[%emt 0:00:56]} 44. Ke1 {[%emt 0:00:12]} Kg6 {[%emt 0:02:51]} 45. Kd2 {[%emt 0:00:16]} Kf5 {[%emt 0:00:05]} 46. Bb2 {[%emt 0:00:28]} Nb6 {[%emt 0:01:18]} 47. Kd3 {[%emt 0:00:41]} e5 {[%emt 0:00:36]} 48. Rb4 {[%emt 0:00:21]} ({Much weaker is} 48. Re4 Rd8+ 49. Ke3 f6 $17) 48... f6 {[%emt 0:05:21]} 49. a5 {[%emt 0:01:08]} Nd7 {[%emt 0:01:10]} (49... Nd5 $11 50. Rb3 Nf4+ 51. Kd2 Nxg2) 50. f3 {[%emt 0:01:48]} Ke6 {[%emt 0:00:21]} 51. g4 {[%emt 0:00:31]} hxg4 {[%emt 0:01:00]} 52. Rxg4 {[%emt 0:00:06]} Rc7 {[%emt 0:01:41]} (52... Rc5 $5 {[%cal Rc5b5]}) 53. Ba3 {[%emt 0:00:49]} Rb7 $2 {[%emt 0:01:07] [#]} (53... f5 $11 54. Rg6+ Nf6) 54. Kc4 $1 {[%emt 0:00:23]} Rc7+ {[%emt 0:00:18]} 55. Kb4 {[%emt 0:00:19]} Kf7 {[%emt 0:00:30]} (55... Nc5) 56. Rc4 {[%emt 0:00:42]} Rxc4+ {[%emt 0:00:35]} 57. Kxc4 {[%emt 0:00:04] KB-KN} Ke6 {[%emt 0:00:04]} 58. Bc1 {[%emt 0:00:51]} (58. Bc5 $142 Nxc5 59. Kxc5) 58... e4 {[%emt 0:01:00]} 59. fxe4 {[%emt 0:00:23]} Ne5+ {[%emt 0:00:04]} 60. Kc5 {[%emt 0:00:42]} Kd7 {[%emt 0:00:05]} 61. Be3 {[%emt 0:00:19]} Kc7 {[%emt 0:00:35]} 62. Bf4 {[%emt 0:00:13] Weighted Error Value: White=0.25 (precise) /Black=0.32} 1-0

[Event "1st Semana Santa Torrevieja 2022"]
[Site "Torrevieja Alicante"]
[Date "2022.04.15"]
[Round "4.11"]
[White "Goluch, Piotr"]
[Black "Vrolijk, Liam"]
[Result "1/2-1/2"]
[ECO "A09"]
[WhiteElo "2314"]
[BlackElo "2480"]
[Annotator "TA"]
[PlyCount "96"]
[EventDate "2022.04.12"]
[EventType "swiss"]
[EventCountry "ESP"]
[SourceTitle "playchess.com"]
[Source "ChessBase"]
[SourceQuality "1"]
[TimeControl "5400+30"]

{[%evp 9,96,-17,-16,-18,-21,-25,-20,-19,-17,-39,-25,-39,-3,0,0,0,58,65,63,68,64,54,108,30,45,37,32,19,54,54,57,-41,-37,-42,-41,-45,-5,-48,-49,-52,-54,-55,-22,-44,0,0,12,9,9,9,19,0,0,0,7,8,7,15,10,0,0,0,0,0,0,0,0,0,0,0,12,0,0,0,0,0,0,-6,-8,0,17,17,17,17,17,17,17,17,18]} 1. Nf3 {[%emt 0:00:22]} d5 {[%emt 0:00:12]} 2. c4 {[%emt 0:00:05]} d4 {[%emt 0:00:24]} 3. b4 {[%emt 0:00:24]} c5 {[%emt 0:00:08]} 4. bxc5 {[%emt 0:00:26]} Nc6 {[%emt 0:02:38]} 5. d3 {[%emt 0:00:31]} Nf6 {[%emt 0:04:41]} 6. g3 {[%emt 0:00:17] A09: Réti Opening: 1 Nf3 d5 2 c4.} e5 {[%emt 0:00:58]} 7. Bg2 {[%emt 0:00:29]} Bxc5 {[%emt 0:00:30]} 8. O-O {[%emt 0:00:21]} O-O {[%emt 0:01:01]} 9. Nfd2 {[%emt 0:01:23] [#]} Re8 $146 {[%emt 0:02:57]} ({Predecessor:} 9... Bf5 10. Qb3 Qd7 11. Na3 Rfe8 12. Rb1 b6 13. Qb5 Rac8 14. Nb3 Bf8 15. c5 Nd5 {½-½ (43) Robeys,S-Gelens,J Brasschaat 1987}) 10. Ba3 {[%emt 0:02:45]} Bxa3 {[%emt 0:05:06]} 11. Nxa3 {[%emt 0:00:05]} Qe7 {[%emt 0:06:38]} 12. Qb3 {[%emt 0:05:46]} Nd7 {[%emt 0:02:04]} (12... h5 $11) 13. Nb5 $14 {[%emt 0:01:59]} Nc5 {[%emt 0:03:54]} 14. Qa3 {[%emt 0:00:13]} Bg4 {[%emt 0:02:35]} 15. Rfe1 $1 {[%emt 0:02:38]} Na6 {[%emt 0:09:18]} (15... h6 $14) 16. Qxe7 {[%emt 0:02:52]} (16. Nd6 $16) 16... Rxe7 $11 {[%emt 0:00:06]} 17. Rab1 {[%emt 0:00:25]} Rd8 {[%emt 0:02:31]} 18. Ne4 {[%emt 0:05:06]} Red7 {[%emt 0:01:03]} 19. h3 {[%emt 0:04:21]} Bf5 {[%emt 0:00:47] [#]} 20. g4 {[%emt 0:00:22]} (20. Ned6 $1 $14 Rxd6 21. Nxd6 Rxd6 22. Rxb7) 20... Bxe4 $15 {[%emt 0:01:20]} 21. Bxe4 {[%emt 0:00:04]} Nc5 {[%emt 0:00:08]} 22. Bd5 {[%emt 0:06:01]} Ne7 {[%emt 0:01:58]} 23. Bg2 {[%emt 0:02:18]} b6 {[%emt 0:01:39]} 24. Na3 {[%emt 0:00:21][%cal Bb5a3,Ba3b1,Bb1d2,Bd2f1][%mdl 32]} g6 {[%emt 0:01:29]} 25. Rb5 {[%emt 0:12:54]} f5 {[%emt 0:01:30]} 26. Nb1 {[%emt 0:00:21]} e4 {[%emt 0:03:14]} 27. dxe4 $1 {[%emt 0:00:53] The position is equal.} fxe4 {[%emt 0:02:51]} 28. Nd2 {[%emt 0:01:39]} e3 {[%emt 0:02:23]} 29. fxe3 {[%emt 0:01:43]} dxe3 {[%emt 0:00:06]} 30. Nf1 {[%emt 0:00:13]} Rd1 {[%emt 0:00:10]} 31. Rb1 {[%emt 0:00:12]} Rxb1 {[%emt 0:01:06]} 32. Rxb1 {[%emt 0:00:04]} Kg7 {[%emt 0:00:20]} 33. Rc1 {[%emt 0:01:08]} Kf6 {[%emt 0:02:36]} 34. Nxe3 {[%emt 0:05:02]} Rd2 {[%emt 0:04:18][%csl LRa2,LRe2]} 35. Rc2 {[%emt 0:00:06]} Rxc2 {[%emt 0:00:05]} 36. Nxc2 $11 {[%emt 0:00:03][%mdl 4096] Endgame KBN-KNN} Ke5 {[%emt 0:01:08]} 37. Kf2 {[%emt 0:01:02]} Na4 {[%emt 0:05:11]} 38. Ke3 {[%emt 0:02:25]} Nb2 {[%emt 0:01:34]} 39. Na3 {[%emt 0:00:10]} g5 {[%emt 0:00:29]} 40. Be4 {[%emt 0:08:45]} Nd1+ $1 {[%emt 0:01:57]} 41. Kf3 {[%emt 0:00:05]} h6 {[%emt 0:00:08]} 42. Bc2 {[%emt 0:09:01]} Nc3 {[%emt 0:00:48]} 43. Bb3 {[%emt 0:01:56]} Nc6 {[%emt 0:02:01]} 44. e3 {[%emt 0:02:39] Prevents Nd4+.} Nb4 {[%emt 0:01:04]} 45. Nb5 {[%emt 0:01:00]} Nxb5 {[%emt 0:02:54]} 46. cxb5 {[%emt 0:00:20] [#] Ke2 is the strong threat.} Nd3 {[%emt 0:00:11]} 47. Ke2 {[%emt 0:03:13]} Nc5 {[%emt 0:00:09]} 48. Bc2 {[%emt 0:00:31]} Nd7 {[%emt 0:00:42] Weighted Error Value: White=0.11 (very precise) /Black=0.09 (flawless)} 1/2-1/2

[Event "1st Semana Santa Torrevieja 2022"]
[Site "Torrevieja Alicante"]
[Date "2022.04.15"]
[Round "4.12"]
[White "Gomez Ledo, Roberto Carlos"]
[Black "Macias Pino, Diego"]
[Result "1/2-1/2"]
[ECO "D02"]
[WhiteElo "2471"]
[BlackElo "2317"]
[Annotator "TA"]
[PlyCount "93"]
[EventDate "2022.04.12"]
[EventType "swiss"]
[EventCountry "ESP"]
[SourceTitle "playchess.com"]
[Source "ChessBase"]
[SourceQuality "1"]
[TimeControl "5400+30"]

{[%evp 9,93,7,11,-2,1,0,0,0,0,0,0,0,0,-8,25,22,35,18,63,60,48,56,60,50,54,35,52,34,67,58,54,51,55,37,38,17,19,0,0,0,0,0,0,0,0,0,0,0,0,0,0,0,0,0,0,0,0,0,0,0,0,0,0,0,0,0,0,0,3,3,3,3,20,0,4,4,4,4,60,41,60,52,60,60,66,36]} 1. d4 {[%emt 0:01:39]} Nf6 {[%emt 0:00:05]} 2. Nf3 {[%emt 0:01:49]} d5 {[%emt 0:02:23]} 3. c3 {[%emt 0:02:29]} e6 {[%emt 0:06:12]} 4. Bf4 {[%emt 0:00:47]} Bd6 {[%emt 0:00:54]} 5. e3 {[%emt 0:01:02]} c5 {[%emt 0:02:35]} 6. Nbd2 {[%emt 0:00:43] D02: 1 d4 d5 2 Nf3 sidelines, including 2...Nf6 3 g3 and 2...Nf6 3 Bf4.} O-O $1 {[%emt 0:02:02] The main line 6...0-0 scores better than 6...Qc7.} 7. Bd3 {[%emt 0:00:40]} Bxf4 8. exf4 {[%emt 0:00:10] The position is equal.} b6 {[%emt 0:01:30]} 9. O-O {[%emt 0:03:47] [#]} a5 $146 {[%emt 0:03:05]} ({Predecessor:} 9... Ba6 10. Qe2 Bxd3 11. Qxd3 Nc6 12. Rfe1 Qd6 13. g3 Rac8 14. Re2 cxd4 15. Nxd4 Nxd4 16. Qxd4 {1-0 (42) Svane,R (2637)-Keymer,V (2655) Chess.com INT 2022}) 10. Re1 {[%emt 0:01:15]} Ba6 {[%emt 0:00:22]} 11. Bc2 {[%emt 0:01:02]} g6 {[%emt 0:01:00]} 12. Ne5 {[%emt 0:00:58]} Nfd7 {[%emt 0:00:48]} 13. Qg4 {[%emt 0:02:34]} Qf6 {[%emt 0:01:55]} 14. Ndf3 {[%emt 0:01:24] &Bianco is much more active.} Qg7 {[%emt 0:02:23]} 15. Rad1 {[%emt 0:04:02][%cal Oe5f7]} Ra7 {[%emt 0:04:56][%cal Ba8a7,Ba7c7,Bc7c6][%mdl 32]} 16. h4 {[%emt 0:01:06]} Rc7 {[%emt 0:01:27]} 17. Bb1 {[%emt 0:00:44]} cxd4 {[%emt 0:01:24]} 18. cxd4 {[%emt 0:02:30]} Nf6 {[%emt 0:02:30]} 19. Qh3 {[%emt 0:01:23]} Nh5 {[%emt 0:26:07]} 20. g3 {[%emt 0:01:21]} Nc6 {[%emt 0:02:19]} 21. Nxc6 {[%emt 0:04:59]} (21. Ng5 {is interesting.} Qf6 22. a3 Qe7 23. Nxh7 Kxh7 24. Nxg6 fxg6 25. Rxe6 Bc8 26. Rxe7+ Rxe7 27. Qf1) 21... Rxc6 {[%emt 0:00:15]} 22. Kg2 {[%emt 0:00:44]} Rc7 {[%emt 0:00:56]} 23. Qh1 {[%emt 0:03:01]} Rfc8 {[%emt 0:01:35]} 24. Rc1 {[%emt 0:00:24]} Qf8 {[%emt 0:00:22]} 25. Rxc7 {[%emt 0:00:59]} Rxc7 {[%emt 0:01:01]} 26. Rc1 {[%emt 0:00:01]} Qc8 {[%emt 0:00:21]} 27. Rxc7 {[%emt 0:00:11]} Qxc7 {[%emt 0:00:02]} 28. Qd1 {[%emt 0:00:19]} Nf6 {[%emt 0:01:08]} 29. Ne5 {[%emt 0:00:32]} Nd7 {[%emt 0:00:28][%cal Bf6d7,Bd7b8,Bb8c6,Bc6d8,Bd8b7,Bb7d6,Bd6f7][%mdl 32]} 30. Qc2 {[%emt 0:01:00]} Qxc2 {[%emt 0:01:21]} 31. Bxc2 $11 {[%emt 0:00:10][%mdl 4096] Endgame KBN-KBN} Nb8 {[%emt 0:00:27]} 32. Kf3 {[%emt 0:01:20]} f6 {[%emt 0:00:33]} 33. Ng4 {[%emt 0:00:15]} Nc6 {[%emt 0:00:52]} 34. Ke3 {[%emt 0:02:46]} ({Don't go for} 34. Nxf6+ $2 Kf7 35. Nxd5 Nxd4+ 36. Ke4 Nxc2 $19) 34... Kf7 {[%emt 0:01:09]} 35. Nh2 {[%emt 0:00:18]} Nd8 {[%emt 0:02:02]} 36. g4 {[%emt 0:07:53][%cal Bg3g4,Bg4g5][%mdl 32]} Nb7 {[%emt 0:01:13]} 37. g5 {[%emt 0:02:15]} Nd6 {[%emt 0:02:21]} 38. b3 {[%emt 0:02:20] Inhibits Nc4+.} f5 {[%emt 0:01:08]} 39. Nf3 {[%emt 0:00:58]} Ke7 {[%emt 0:00:20]} 40. Ne5 {[%emt 0:03:17]} Nf7 {[%emt 0:00:07]} 41. Nf3 {[%emt 0:00:59]} Nd6 {[%emt 0:00:04]} 42. Nd2 {[%emt 0:00:15]} Nf7 {[%emt 0:01:15]} 43. Bd1 {[%emt 0:00:13]} h5 {[%emt 0:01:56]} (43... Nd6 $11) 44. a3 {[%emt 0:03:44] White is slightly better.} Bb5 {[%emt 0:00:34]} 45. Nf3 {[%emt 0:01:25]} Kd6 {[%emt 0:00:38]} 46. Kd2 {[%emt 0:00:59]} Kc7 {[%emt 0:00:32]} 47. Kc3 {[%emt 0:41:18] Weighted Error Value: White=0.04 (flawless) /Black=0.07 (flawless)} (47. a4 $5 {[%cal Ra4b5]} Ba6 48. Kc3 $11) 1/2-1/2